Workbook

Sheet 1
A1: مسلسل | B1: الوزن بالكيلو | C1: الصنف | D1: الاسم | E1: السعر | F1: =SUM($F$2:$F$1000) -> 0 | G1: =SUM($G$2:$G$1000) -> 0 | H1: =SUM($H$2:$H$1000) -> 0 | I1: التاريخ
A2: =IF(C2="","",SUBTOTAL(3,$C$2:C2)) ->  | E2: =IFERROR(VLOOKUP(C2,Setting!$A$2:$B$33,2,0),"") ->  | F2: =IFERROR(B2*E2,"") ->  | H2: =IFERROR(F2-G2,"") ->  | I2: =IF(D2="","",TODAY()) -> 
A3: =IF(C3="","",SUBTOTAL(3,$C$2:C3)) ->  | E3: =IFERROR(VLOOKUP(C3,Setting!$A$2:$B$33,2,0),"") ->  | F3: =IFERROR(B3*E3,"") ->  | H3: =IFERROR(F3-G3,"") ->  | I3: =IF(D3="","",TODAY()) -> 
A4: =IF(C4="","",SUBTOTAL(3,$C$2:C4)) ->  | E4: =IFERROR(VLOOKUP(C4,Setting!$A$2:$B$33,2,0),"") -> 
A5: =IF(C5="","",SUBTOTAL(3,$C$2:C5)) ->  | E5: =IFERROR(VLOOKUP(C5,Setting!$A$2:$B$33,2,0),"") ->  | K5: ملحوظة: لا يتم الكتابة الا فى العمود الثانى B والعمود G - ولا يمكنك الكتابة فى الأعمدة الملونة اما بالنسبة للعمودان الثالث والرابع C & D يمكنك إختيار ما تريد من قائمة
A6: =IF(C6="","",SUBTOTAL(3,$C$2:C6)) ->  | E6: =IFERROR(VLOOKUP(C6,Setting!$A$2:$B$33,2,0),"") -> 
A7: =IF(C7="","",SUBTOTAL(3,$C$2:C7)) ->  | E7: =IFERROR(VLOOKUP(C7,Setting!$A$2:$B$33,2,0),"") -> 
A8: =IF(C8="","",SUBTOTAL(3,$C$2:C8)) ->  | E8: =IFERROR(VLOOKUP(C8,Setting!$A$2:$B$33,2,0),"") -> 
A9: =IF(C9="","",SUBTOTAL(3,$C$2:C9)) ->  | E9: =IFERROR(VLOOKUP(C9,Setting!$A$2:$B$33,2,0),"") -> 
A10: =IF(C10="","",SUBTOTAL(3,$C$2:C10)) ->  | E10: =IFERROR(VLOOKUP(C10,Setting!$A$2:$B$33,2,0),"") -> 
A11: =IF(C11="","",SUBTOTAL(3,$C$2:C11)) ->  | E11: =IFERROR(VLOOKUP(C11,Setting!$A$2:$B$33,2,0),"") -> 
A12: =IF(C12="","",SUBTOTAL(3,$C$2:C12)) ->  | E12: =IFERROR(VLOOKUP(C12,Setting!$A$2:$B$33,2,0),"") -> 
A13: =IF(C13="","",SUBTOTAL(3,$C$2:C13)) ->  | E13: =IFERROR(VLOOKUP(C13,Setting!$A$2:$B$33,2,0),"") -> 
A14: =IF(C14="","",SUBTOTAL(3,$C$2:C14)) ->  | E14: =IFERROR(VLOOKUP(C14,Setting!$A$2:$B$33,2,0),"") -> 
A15: =IF(C15="","",SUBTOTAL(3,$C$2:C15)) ->  | E15: =IFERROR(VLOOKUP(C15,Setting!$A$2:$B$33,2,0),"") -> 
A16: =IF(C16="","",SUBTOTAL(3,$C$2:C16)) ->  | E16: =IFERROR(VLOOKUP(C16,Setting!$A$2:$B$33,2,0),"") -> 
A17: =IF(C17="","",SUBTOTAL(3,$C$2:C17)) ->  | E17: =IFERROR(VLOOKUP(C17,Setting!$A$2:$B$33,2,0),"") -> 
A18: =IF(C18="","",SUBTOTAL(3,$C$2:C18)) ->  | E18: =IFERROR(VLOOKUP(C18,Setting!$A$2:$B$33,2,0),"") -> 
A19: =IF(C19="","",SUBTOTAL(3,$C$2:C19)) ->  | E19: =IFERROR(VLOOKUP(C19,Setting!$A$2:$B$33,2,0),"") -> 
A20: =IF(C20="","",SUBTOTAL(3,$C$2:C20)) ->  | E20: =IFERROR(VLOOKUP(C20,Setting!$A$2:$B$33,2,0),"") -> 
A21: =IF(C21="","",SUBTOTAL(3,$C$2:C21)) ->  | E21: =IFERROR(VLOOKUP(C21,Setting!$A$2:$B$33,2,0),"") -> 
A22: =IF(C22="","",SUBTOTAL(3,$C$2:C22)) ->  | E22: =IFERROR(VLOOKUP(C22,Setting!$A$2:$B$33,2,0),"") -> 
A23: =IF(C23="","",SUBTOTAL(3,$C$2:C23)) ->  | E23: =IFERROR(VLOOKUP(C23,Setting!$A$2:$B$33,2,0),"") -> 
A24: =IF(C24="","",SUBTOTAL(3,$C$2:C24)) ->  | E24: =IFERROR(VLOOKUP(C24,Setting!$A$2:$B$33,2,0),"") -> 
A25: =IF(C25="","",SUBTOTAL(3,$C$2:C25)) ->  | E25: =IFERROR(VLOOKUP(C25,Setting!$A$2:$B$33,2,0),"") -> 
A26: =IF(C26="","",SUBTOTAL(3,$C$2:C26)) ->  | E26: =IFERROR(VLOOKUP(C26,Setting!$A$2:$B$33,2,0),"") -> 
A27: =IF(C27="","",SUBTOTAL(3,$C$2:C27)) ->  | E27: =IFERROR(VLOOKUP(C27,Setting!$A$2:$B$33,2,0),"") -> 
A28: =IF(C28="","",SUBTOTAL(3,$C$2:C28)) ->  | E28: =IFERROR(VLOOKUP(C28,Setting!$A$2:$B$33,2,0),"") -> 
A29: =IF(C29="","",SUBTOTAL(3,$C$2:C29)) ->  | E29: =IFERROR(VLOOKUP(C29,Setting!$A$2:$B$33,2,0),"") -> 
A30: =IF(C30="","",SUBTOTAL(3,$C$2:C30)) ->  | E30: =IFERROR(VLOOKUP(C30,Setting!$A$2:$B$33,2,0),"") -> 
A31: =IF(C31="","",SUBTOTAL(3,$C$2:C31)) ->  | E31: =IFERROR(VLOOKUP(C31,Setting!$A$2:$B$33,2,0),"") -> 
A32: =IF(C32="","",SUBTOTAL(3,$C$2:C32)) ->  | E32: =IFERROR(VLOOKUP(C32,Setting!$A$2:$B$33,2,0),"") -> 
A33: =IF(C33="","",SUBTOTAL(3,$C$2:C33)) ->  | E33: =IFERROR(VLOOKUP(C33,Setting!$A$2:$B$33,2,0),"") -> 
A34: =IF(C34="","",SUBTOTAL(3,$C$2:C34)) ->  | E34: =IFERROR(VLOOKUP(C34,Setting!$A$2:$B$33,2,0),"") -> 
A35: =IF(C35="","",SUBTOTAL(3,$C$2:C35)) ->  | E35: =IFERROR(VLOOKUP(C35,Setting!$A$2:$B$33,2,0),"") -> 
A36: =IF(C36="","",SUBTOTAL(3,$C$2:C36)) ->  | E36: =IFERROR(VLOOKUP(C36,Setting!$A$2:$B$33,2,0),"") -> 
A37: =IF(C37="","",SUBTOTAL(3,$C$2:C37)) ->  | E37: =IFERROR(VLOOKUP(C37,Setting!$A$2:$B$33,2,0),"") -> 
A38: =IF(C38="","",SUBTOTAL(3,$C$2:C38)) ->  | E38: =IFERROR(VLOOKUP(C38,Setting!$A$2:$B$33,2,0),"") -> 
A39: =IF(C39="","",SUBTOTAL(3,$C$2:C39)) ->  | E39: =IFERROR(VLOOKUP(C39,Setting!$A$2:$B$33,2,0),"") -> 
A40: =IF(C40="","",SUBTOTAL(3,$C$2:C40)) ->  | E40: =IFERROR(VLOOKUP(C40,Setting!$A$2:$B$33,2,0),"") -> 
A41: =IF(C41="","",SUBTOTAL(3,$C$2:C41)) ->  | E41: =IFERROR(VLOOKUP(C41,Setting!$A$2:$B$33,2,0),"") -> 
A42: =IF(C42="","",SUBTOTAL(3,$C$2:C42)) ->  | E42: =IFERROR(VLOOKUP(C42,Setting!$A$2:$B$33,2,0),"") -> 
A43: =IF(C43="","",SUBTOTAL(3,$C$2:C43)) ->  | E43: =IFERROR(VLOOKUP(C43,Setting!$A$2:$B$33,2,0),"") -> 
A44: =IF(C44="","",SUBTOTAL(3,$C$2:C44)) ->  | E44: =IFERROR(VLOOKUP(C44,Setting!$A$2:$B$33,2,0),"") -> 
A45: =IF(C45="","",SUBTOTAL(3,$C$2:C45)) ->  | E45: =IFERROR(VLOOKUP(C45,Setting!$A$2:$B$33,2,0),"") -> 
A46: =IF(C46="","",SUBTOTAL(3,$C$2:C46)) ->  | E46: =IFERROR(VLOOKUP(C46,Setting!$A$2:$B$33,2,0),"") -> 
A47: =IF(C47="","",SUBTOTAL(3,$C$2:C47)) ->  | E47: =IFERROR(VLOOKUP(C47,Setting!$A$2:$B$33,2,0),"") -> 
A48: =IF(C48="","",SUBTOTAL(3,$C$2:C48)) ->  | E48: =IFERROR(VLOOKUP(C48,Setting!$A$2:$B$33,2,0),"") -> 
A49: =IF(C49="","",SUBTOTAL(3,$C$2:C49)) ->  | E49: =IFERROR(VLOOKUP(C49,Setting!$A$2:$B$33,2,0),"") -> 
A50: =IF(C50="","",SUBTOTAL(3,$C$2:C50)) ->  | E50: =IFERROR(VLOOKUP(C50,Setting!$A$2:$B$33,2,0),"") -> 
A51: =IF(C51="","",SUBTOTAL(3,$C$2:C51)) ->  | E51: =IFERROR(VLOOKUP(C51,Setting!$A$2:$B$33,2,0),"") -> 
A52: =IF(C52="","",SUBTOTAL(3,$C$2:C52)) ->  | E52: =IFERROR(VLOOKUP(C52,Setting!$A$2:$B$33,2,0),"") -> 
A53: =IF(C53="","",SUBTOTAL(3,$C$2:C53)) ->  | E53: =IFERROR(VLOOKUP(C53,Setting!$A$2:$B$33,2,0),"") -> 
A54: =IF(C54="","",SUBTOTAL(3,$C$2:C54)) ->  | E54: =IFERROR(VLOOKUP(C54,Setting!$A$2:$B$33,2,0),"") -> 
A55: =IF(C55="","",SUBTOTAL(3,$C$2:C55)) ->  | E55: =IFERROR(VLOOKUP(C55,Setting!$A$2:$B$33,2,0),"") -> 
A56: =IF(C56="","",SUBTOTAL(3,$C$2:C56)) ->  | E56: =IFERROR(VLOOKUP(C56,Setting!$A$2:$B$33,2,0),"") -> 
A57: =IF(C57="","",SUBTOTAL(3,$C$2:C57)) ->  | E57: =IFERROR(VLOOKUP(C57,Setting!$A$2:$B$33,2,0),"") -> 
A58: =IF(C58="","",SUBTOTAL(3,$C$2:C58)) ->  | E58: =IFERROR(VLOOKUP(C58,Setting!$A$2:$B$33,2,0),"") -> 
A59: =IF(C59="","",SUBTOTAL(3,$C$2:C59)) ->  | E59: =IFERROR(VLOOKUP(C59,Setting!$A$2:$B$33,2,0),"") -> 
A60: =IF(C60="","",SUBTOTAL(3,$C$2:C60)) ->  | E60: =IFERROR(VLOOKUP(C60,Setting!$A$2:$B$33,2,0),"") -> 
A61: =IF(C61="","",SUBTOTAL(3,$C$2:C61)) ->  | E61: =IFERROR(VLOOKUP(C61,Setting!$A$2:$B$33,2,0),"") -> 
A62: =IF(C62="","",SUBTOTAL(3,$C$2:C62)) ->  | E62: =IFERROR(VLOOKUP(C62,Setting!$A$2:$B$33,2,0),"") -> 
A63: =IF(C63="","",SUBTOTAL(3,$C$2:C63)) ->  | E63: =IFERROR(VLOOKUP(C63,Setting!$A$2:$B$33,2,0),"") -> 
A64: =IF(C64="","",SUBTOTAL(3,$C$2:C64)) ->  | E64: =IFERROR(VLOOKUP(C64,Setting!$A$2:$B$33,2,0),"") -> 
A65: =IF(C65="","",SUBTOTAL(3,$C$2:C65)) ->  | E65: =IFERROR(VLOOKUP(C65,Setting!$A$2:$B$33,2,0),"") -> 
A66: =IF(C66="","",SUBTOTAL(3,$C$2:C66)) ->  | E66: =IFERROR(VLOOKUP(C66,Setting!$A$2:$B$33,2,0),"") -> 
A67: =IF(C67="","",SUBTOTAL(3,$C$2:C67)) ->  | E67: =IFERROR(VLOOKUP(C67,Setting!$A$2:$B$33,2,0),"") ->  | F67: =IFERROR(B67*E67,"") ->  | H67: =IFERROR(F67-G67,"") ->  | I67: =IF(D67="","",TODAY()) -> 
A68: =IF(C68="","",SUBTOTAL(3,$C$2:C68)) ->  | E68: =IFERROR(VLOOKUP(C68,Setting!$A$2:$B$33,2,0),"") -> 
A69: =IF(C69="","",SUBTOTAL(3,$C$2:C69)) ->  | E69: =IFERROR(VLOOKUP(C69,Setting!$A$2:$B$33,2,0),"") -> 
A70: =IF(C70="","",SUBTOTAL(3,$C$2:C70)) ->  | E70: =IFERROR(VLOOKUP(C70,Setting!$A$2:$B$33,2,0),"") -> 
A71: =IF(C71="","",SUBTOTAL(3,$C$2:C71)) ->  | E71: =IFERROR(VLOOKUP(C71,Setting!$A$2:$B$33,2,0),"") -> 
A72: =IF(C72="","",SUBTOTAL(3,$C$2:C72)) ->  | E72: =IFERROR(VLOOKUP(C72,Setting!$A$2:$B$33,2,0),"") -> 
A73: =IF(C73="","",SUBTOTAL(3,$C$2:C73)) ->  | E73: =IFERROR(VLOOKUP(C73,Setting!$A$2:$B$33,2,0),"") -> 
A74: =IF(C74="","",SUBTOTAL(3,$C$2:C74)) ->  | E74: =IFERROR(VLOOKUP(C74,Setting!$A$2:$B$33,2,0),"") -> 
A75: =IF(C75="","",SUBTOTAL(3,$C$2:C75)) ->  | E75: =IFERROR(VLOOKUP(C75,Setting!$A$2:$B$33,2,0),"") -> 
A76: =IF(C76="","",SUBTOTAL(3,$C$2:C76)) ->  | E76: =IFERROR(VLOOKUP(C76,Setting!$A$2:$B$33,2,0),"") -> 
A77: =IF(C77="","",SUBTOTAL(3,$C$2:C77)) ->  | E77: =IFERROR(VLOOKUP(C77,Setting!$A$2:$B$33,2,0),"") -> 
A78: =IF(C78="","",SUBTOTAL(3,$C$2:C78)) ->  | E78: =IFERROR(VLOOKUP(C78,Setting!$A$2:$B$33,2,0),"") -> 
A79: =IF(C79="","",SUBTOTAL(3,$C$2:C79)) ->  | E79: =IFERROR(VLOOKUP(C79,Setting!$A$2:$B$33,2,0),"") -> 
A80: =IF(C80="","",SUBTOTAL(3,$C$2:C80)) ->  | E80: =IFERROR(VLOOKUP(C80,Setting!$A$2:$B$33,2,0),"") -> 
A81: =IF(C81="","",SUBTOTAL(3,$C$2:C81)) ->  | E81: =IFERROR(VLOOKUP(C81,Setting!$A$2:$B$33,2,0),"") -> 
A82: =IF(C82="","",SUBTOTAL(3,$C$2:C82)) ->  | E82: =IFERROR(VLOOKUP(C82,Setting!$A$2:$B$33,2,0),"") -> 
A83: =IF(C83="","",SUBTOTAL(3,$C$2:C83)) ->  | E83: =IFERROR(VLOOKUP(C83,Setting!$A$2:$B$33,2,0),"") -> 
A84: =IF(C84="","",SUBTOTAL(3,$C$2:C84)) ->  | E84: =IFERROR(VLOOKUP(C84,Setting!$A$2:$B$33,2,0),"") -> 
A85: =IF(C85="","",SUBTOTAL(3,$C$2:C85)) ->  | E85: =IFERROR(VLOOKUP(C85,Setting!$A$2:$B$33,2,0),"") -> 
A86: =IF(C86="","",SUBTOTAL(3,$C$2:C86)) ->  | E86: =IFERROR(VLOOKUP(C86,Setting!$A$2:$B$33,2,0),"") -> 
A87: =IF(C87="","",SUBTOTAL(3,$C$2:C87)) ->  | E87: =IFERROR(VLOOKUP(C87,Setting!$A$2:$B$33,2,0),"") -> 
A88: =IF(C88="","",SUBTOTAL(3,$C$2:C88)) ->  | E88: =IFERROR(VLOOKUP(C88,Setting!$A$2:$B$33,2,0),"") -> 
A89: =IF(C89="","",SUBTOTAL(3,$C$2:C89)) ->  | E89: =IFERROR(VLOOKUP(C89,Setting!$A$2:$B$33,2,0),"") -> 
A90: =IF(C90="","",SUBTOTAL(3,$C$2:C90)) ->  | E90: =IFERROR(VLOOKUP(C90,Setting!$A$2:$B$33,2,0),"") -> 
A91: =IF(C91="","",SUBTOTAL(3,$C$2:C91)) ->  | E91: =IFERROR(VLOOKUP(C91,Setting!$A$2:$B$33,2,0),"") -> 
A92: =IF(C92="","",SUBTOTAL(3,$C$2:C92)) ->  | E92: =IFERROR(VLOOKUP(C92,Setting!$A$2:$B$33,2,0),"") -> 
A93: =IF(C93="","",SUBTOTAL(3,$C$2:C93)) ->  | E93: =IFERROR(VLOOKUP(C93,Setting!$A$2:$B$33,2,0),"") -> 
A94: =IF(C94="","",SUBTOTAL(3,$C$2:C94)) ->  | E94: =IFERROR(VLOOKUP(C94,Setting!$A$2:$B$33,2,0),"") -> 
A95: =IF(C95="","",SUBTOTAL(3,$C$2:C95)) ->  | E95: =IFERROR(VLOOKUP(C95,Setting!$A$2:$B$33,2,0),"") -> 
A96: =IF(C96="","",SUBTOTAL(3,$C$2:C96)) ->  | E96: =IFERROR(VLOOKUP(C96,Setting!$A$2:$B$33,2,0),"") -> 
A97: =IF(C97="","",SUBTOTAL(3,$C$2:C97)) ->  | E97: =IFERROR(VLOOKUP(C97,Setting!$A$2:$B$33,2,0),"") -> 
A98: =IF(C98="","",SUBTOTAL(3,$C$2:C98)) ->  | E98: =IFERROR(VLOOKUP(C98,Setting!$A$2:$B$33,2,0),"") -> 
A99: =IF(C99="","",SUBTOTAL(3,$C$2:C99)) ->  | E99: =IFERROR(VLOOKUP(C99,Setting!$A$2:$B$33,2,0),"") -> 
A100: =IF(C100="","",SUBTOTAL(3,$C$2:C100)) ->  | E100: =IFERROR(VLOOKUP(C100,Setting!$A$2:$B$33,2,0),"") -> 
A101: =IF(C101="","",SUBTOTAL(3,$C$2:C101)) ->  | E101: =IFERROR(VLOOKUP(C101,Setting!$A$2:$B$33,2,0),"") -> 

Sheet عميل رقم 1
A1: مسلسل | B1: الوزن بالكيلو | C1: الصنف | D1: الاسم | E1: السعر | F1: =SUM($F$2:$F$1000) -> 5 | G1: =SUM($G$2:$G$1000) -> 0 | H1: =SUM($H$2:$H$1000) -> 5 | I1: التاريخ
A2: 1 | B2: 2 | C2: بلدى | D2: عميل رقم 1 | E2: 2.5 | F2: 5 | H2: 5 | I2: 2018-09-28

Sheet عميل رقم 2
A1: مسلسل | B1: الوزن بالكيلو | C1: الصنف | D1: الاسم | E1: السعر | F1: =SUM($F$2:$F$1000) -> 12 | G1: =SUM($G$2:$G$1000) -> 0 | H1: =SUM($H$2:$H$1000) -> 12 | I1: التاريخ
A2: 2 | B2: 4 | C2: ساسو | D2: عميل رقم 2 | E2: 3 | F2: 12 | H2: 12 | I2: 2018-09-28

Sheet عميل رقم 3
A1: مسلسل | B1: الوزن بالكيلو | C1: الصنف | D1: الاسم | E1: السعر | F1: =SUM($F$2:$F$1000) -> 21 | G1: =SUM($G$2:$G$1000) -> 0 | H1: =SUM($H$2:$H$1000) -> 21 | I1: التاريخ
A2: 3 | B2: 6 | C2: دقى | D2: عميل رقم 3 | E2: 3.5 | F2: 21 | H2: 21 | I2: 2018-09-28

Sheet عميل رقم 4
A1: مسلسل | B1: الوزن بالكيلو | C1: الصنف | D1: الاسم | E1: السعر | F1: =SUM($F$2:$F$1000) -> 32 | G1: =SUM($G$2:$G$1000) -> 0 | H1: =SUM($H$2:$H$1000) -> 32 | I1: التاريخ
A2: 4 | B2: 8 | C2: فيومى | D2: عميل رقم 4 | E2: 4 | F2: 32 | H2: 32 | I2: 2018-09-28

Sheet عميل رقم 5
A1: مسلسل | B1: الوزن بالكيلو | C1: الصنف | D1: الاسم | E1: السعر | F1: =SUM($F$2:$F$1000) -> 45 | G1: =SUM($G$2:$G$1000) -> 0 | H1: =SUM($H$2:$H$1000) -> 45 | I1: التاريخ
A2: 5 | B2: 10 | C2: دشيشة | D2: عميل رقم 5 | E2: 4.5 | F2: 45 | H2: 45 | I2: 2018-09-28

Sheet عميل رقم 6
A1: مسلسل | B1: الوزن بالكيلو | C1: الصنف | D1: الاسم | E1: السعر | F1: =SUM($F$2:$F$1000) -> 54 | G1: =SUM($G$2:$G$1000) -> 0 | H1: =SUM($H$2:$H$1000) -> 54 | I1: التاريخ
A2: 6 | B2: 12 | C2: ردة | D2: عميل رقم 6 | E2: 4.5 | F2: 54 | H2: 54 | I2: 2018-09-28

Sheet عميل رقم 7
A1: مسلسل | B1: الوزن بالكيلو | C1: الصنف | D1: الاسم | E1: السعر | F1: =SUM($F$2:$F$1000) -> 70 | G1: =SUM($G$2:$G$1000) -> 0 | H1: =SUM($H$2:$H$1000) -> 70 | I1: التاريخ
A2: 7 | B2: 14 | C2: علف بط | D2: عميل رقم 7 | E2: 5 | F2: 70 | H2: 70 | I2: 2018-09-28

Sheet عميل رقم 8
A1: مسلسل | B1: الوزن بالكيلو | C1: الصنف | D1: الاسم | E1: السعر | F1: =SUM($F$2:$F$1000) -> 80 | G1: =SUM($G$2:$G$1000) -> 0 | H1: =SUM($H$2:$H$1000) -> 80 | I1: التاريخ
A2: 8 | B2: 16 | C2: بياض | D2: عميل رقم 8 | E2: 5 | F2: 80 | H2: 80 | I2: 2018-09-28

Sheet عميل رقم 9
A1: مسلسل | B1: الوزن بالكيلو | C1: الصنف | D1: الاسم | E1: السعر | F1: =SUM($F$2:$F$1000) -> 117 | G1: =SUM($G$2:$G$1000) -> 0 | H1: =SUM($H$2:$H$1000) -> 117 | I1: التاريخ
A2: 9 | B2: 18 | C2: تسمين | D2: عميل رقم 9 | E2: 6.5 | F2: 117 | H2: 117 | I2: 2018-09-28

Sheet عميل رقم 10
A1: مسلسل | B1: الوزن بالكيلو | C1: الصنف | D1: الاسم | E1: السعر | F1: =SUM($F$2:$F$1000) -> 140 | G1: =SUM($G$2:$G$1000) -> 0 | H1: =SUM($H$2:$H$1000) -> 140 | I1: التاريخ
A2: 10 | B2: 20 | C2: بادى نامى خشن | D2: عميل رقم 10 | E2: 7 | F2: 140 | H2: 140 | I2: 2018-09-28

Sheet عميل رقم 11
A1: مسلسل | B1: الوزن بالكيلو | C1: الصنف | D1: الاسم | E1: السعر | F1: =SUM($F$2:$F$1000) -> 154 | G1: =SUM($G$2:$G$1000) -> 0 | H1: =SUM($H$2:$H$1000) -> 154 | I1: التاريخ
A2: 11 | B2: 22 | C2: بادى نامى ناعم | D2: عميل رقم 11 | E2: 7 | F2: 154 | H2: 154 | I2: 2018-09-28

Sheet عميل رقم 12
A1: مسلسل | B1: الوزن بالكيلو | C1: الصنف | D1: الاسم | E1: السعر | F1: =SUM($F$2:$F$1000) -> 168 | G1: =SUM($G$2:$G$1000) -> 0 | H1: =SUM($H$2:$H$1000) -> 168 | I1: التاريخ
A2: 12 | B2: 24 | C2: نامى خشن | D2: عميل رقم 12 | E2: 7 | F2: 168 | H2: 168 | I2: 2018-09-28

Sheet عميل رقم 13
A1: مسلسل | B1: الوزن بالكيلو | C1: الصنف | D1: الاسم | E1: السعر | F1: =SUM($F$2:$F$1000) -> 195 | G1: =SUM($G$2:$G$1000) -> 0 | H1: =SUM($H$2:$H$1000) -> 195 | I1: التاريخ
A2: 13 | B2: 26 | C2: بادى ناعم | D2: عميل رقم 13 | E2: 7.5 | F2: 195 | H2: 195 | I2: 2018-09-28

Sheet عميل رقم 14
A1: مسلسل | B1: الوزن بالكيلو | C1: الصنف | D1: الاسم | E1: السعر | F1: =SUM($F$2:$F$1000) -> 420 | G1: =SUM($G$2:$G$1000) -> 0 | H1: =SUM($H$2:$H$1000) -> 420 | I1: التاريخ
A2: 14 | B2: 28 | C2: مولر | D2: عميل رقم 14 | E2: 15 | F2: 420 | H2: 420 | I2: 2018-09-28

Sheet عميل رقم 15
A1: مسلسل | B1: الوزن بالكيلو | C1: الصنف | D1: الاسم | E1: السعر | F1: =SUM($F$2:$F$1000) -> 540 | G1: =SUM($G$2:$G$1000) -> 0 | H1: =SUM($H$2:$H$1000) -> 540 | I1: التاريخ
A2: 15 | B2: 30 | C2: موسكوفى | D2: عميل رقم 15 | E2: 18 | F2: 540 | H2: 540 | I2: 2018-09-28

Sheet عميل رقم 16
A1: مسلسل | B1: الوزن بالكيلو | C1: الصنف | D1: الاسم | E1: السعر | F1: =SUM($F$2:$F$1000) -> 960 | G1: =SUM($G$2:$G$1000) -> 0 | H1: =SUM($H$2:$H$1000) -> 960 | I1: التاريخ
A2: 16 | B2: 32 | C2: رومى | D2: عميل رقم 16 | E2: 30 | F2: 960 | H2: 960 | I2: 2018-09-28

Sheet عميل رقم 17
A1: مسلسل | B1: الوزن بالكيلو | C1: الصنف | D1: الاسم | E1: السعر | F1: =SUM($F$2:$F$1000) -> 85 | G1: =SUM($G$2:$G$1000) -> 0 | H1: =SUM($H$2:$H$1000) -> 85 | I1: التاريخ
A2: 17 | B2: 34 | C2: بلدى | D2: عميل رقم 17 | E2: 2.5 | F2: 85 | H2: 85 | I2: 2018-09-28

Sheet عميل رقم 18
A1: مسلسل | B1: الوزن بالكيلو | C1: الصنف | D1: الاسم | E1: السعر | F1: =SUM($F$2:$F$1000) -> 108 | G1: =SUM($G$2:$G$1000) -> 0 | H1: =SUM($H$2:$H$1000) -> 108 | I1: التاريخ
A2: 18 | B2: 36 | C2: ساسو | D2: عميل رقم 18 | E2: 3 | F2: 108 | H2: 108 | I2: 2018-09-28

Sheet عميل رقم 19
A1: مسلسل | B1: الوزن بالكيلو | C1: الصنف | D1: الاسم | E1: السعر | F1: =SUM($F$2:$F$1000) -> 133 | G1: =SUM($G$2:$G$1000) -> 0 | H1: =SUM($H$2:$H$1000) -> 133 | I1: التاريخ
A2: 19 | B2: 38 | C2: دقى | D2: عميل رقم 19 | E2: 3.5 | F2: 133 | H2: 133 | I2: 2018-09-28

Sheet عميل رقم 20
A1: مسلسل | B1: الوزن بالكيلو | C1: الصنف | D1: الاسم | E1: السعر | F1: =SUM($F$2:$F$1000) -> 160 | G1: =SUM($G$2:$G$1000) -> 0 | H1: =SUM($H$2:$H$1000) -> 160 | I1: التاريخ
A2: 20 | B2: 40 | C2: فيومى | D2: عميل رقم 20 | E2: 4 | F2: 160 | H2: 160 | I2: 2018-09-28

Sheet Setting (hidden)
A1: اسماء الأصناف | B1: سعر الكيلو | E1: أسماء العملاء
A2: بلدى | B2: 2.5 | E2: عميل رقم 1
A3: ساسو | B3: 3 | E3: عميل رقم 2
A4: دقى | B4: 3.5 | E4: عميل رقم 3
A5: فيومى | B5: 4 | E5: عميل رقم 4
A6: دشيشة | B6: 4.5 | E6: عميل رقم 5
A7: ردة | B7: 4.5 | E7: عميل رقم 6
A8: علف بط | B8: 5 | E8: عميل رقم 7
A9: بياض | B9: 5 | E9: عميل رقم 8
A10: تسمين | B10: 6.5 | E10: عميل رقم 9
A11: بادى نامى خشن | B11: 7 | E11: عميل رقم 10
A12: بادى نامى ناعم | B12: 7 | E12: عميل رقم 11
A13: نامى خشن | B13: 7 | E13: عميل رقم 12
A14: بادى ناعم | B14: 7.5 | E14: عميل رقم 13
A15: مولر | B15: 15 | E15: عميل رقم 14
A16: موسكوفى | B16: 18 | E16: عميل رقم 15
A17: رومى | B17: 30 | E17: عميل رقم 16
E18: عميل رقم 17
E19: عميل رقم 18
E20: عميل رقم 19
E21: عميل رقم 20
